[Event "AUT Bundesliga 2022-23"]
[Site "Jenbach"]
[Date "2022.11.03"]
[Round "1.8"]
[White "Banusz, Tamas"]
[Black "Leitner, Gerald"]
[Result "1-0"]
[ECO "A06"]
[WhiteElo "2622"]
[BlackElo "2167"]
[Annotator "ChessBase"]
[PlyCount "257"]
[EventDate "2022.11.03"]
[EventType "team-tourn"]
[EventCountry "AUT"]
[SourceTitle "playchess.com"]
[Source "ChessBase"]
[SourceQuality "1"]
[TimeControl "40/5400+30:1800+30"]

1. Nf3 {[%emt 0:00:04]} d5 {[%emt 0:00:10]} 2. g3 {[%emt 0:00:06]} Nf6 {[%emt 0:00:17]} 3. Bg2 {[%emt 0:00:07]} c6 {[%emt 0:00:56]} 4. c4 {[%emt 0:00:16]} g6 {[%emt 0:01:40]} 5. b3 {[%emt 0:06:45]} Bg7 {[%emt 0:00:01]} 6. Bb2 {[%emt 0:00:11]} O-O {[%emt 0:00:02]} 7. O-O {[%emt 0:00:06]} Re8 {[%emt 0:10:08]} 8. d4 {[%emt 0:01:02]} Bf5 {[%emt 0:00:42]} 9. Nc3 {[%emt 0:02:23]} Ne4 {[%emt 0:02:22]} 10. e3 {[%emt 0:01:25]} Nxc3 {[%emt 0:03:07]} 11. Bxc3 {[%emt 0:01:37]} Be4 {[%emt 0:02:20]} 12. Qe2 {[%emt 0:00:19]} Nd7 {[%emt 0:04:50]} 13. Rfd1 {[%emt 0:03:09]} Nf6 {[%emt 0:01:14]} 14. Rac1 {[%emt 0:03:26]} Qb6 {[%emt 0:11:24]} 15. Bf1 {[%emt 0:01:43]} Bxf3 {[%emt 0:04:13]} 16. Qxf3 {[%emt 0:01:18]} Ne4 {[%emt 0:00:11]} 17. Be1 {[%emt 0:01:06]} e6 {[%emt 0:02:28]} 18. b4 {[%emt 0:02:46]} a6 {[%emt 0:00:58]} 19. Bd3 {[%emt 0:02:11]} f5 {[%emt 0:00:08]} 20. Qe2 {[%emt 0:00:27]} Rec8 {[%emt 0:06:06]} 21. a4 {[%emt 0:01:56]} Qd8 {[%emt 0:03:58]} 22. Rb1 {[%emt 0:04:04]} Qf6 {[%emt 0:08:25]} 23. f3 {[%emt 0:03:00]} Ng5 {[%emt 0:02:29]} 24. c5 {[%emt 0:01:13]} Nf7 {[%emt 0:03:03]} 25. f4 {[%emt 0:00:13]} g5 {[%emt 0:00:14]} 26. Kh1 {[%emt 0:01:53]} Qg6 {[%emt 0:11:17]} 27. b5 {[%emt 0:01:59]} axb5 {[%emt 0:00:02]} 28. axb5 {[%emt 0:00:06]} Kh8 {[%emt 0:04:45]} 29. bxc6 {[%emt 0:00:41]} bxc6 {[%emt 0:00:01]} 30. Ba6 {[%emt 0:00:46]} Rg8 {[%emt 0:01:44]} 31. Bb7 {[%emt 0:04:25]} Rab8 {[%emt 0:01:26]} 32. Bxc6 {[%emt 0:00:15]} Rxb1 {[%emt 0:00:09]} 33. Rxb1 {[%emt 0:00:05]} gxf4 {[%emt 0:00:07]} 34. exf4 {[%emt 0:00:22]} Bxd4 {[%emt 0:00:23]} 35. Bd7 {[%emt 0:01:10]} e5 {[%emt 0:04:11]} 36. Qd3 {[%emt 0:10:58]} Bxc5 {[%emt 0:02:42]} 37. Qxd5 {[%emt 0:00:20]} Bd4 {[%emt 0:04:57]} 38. Ba5 {[%emt 0:01:08]} Nh6 {[%emt 0:02:17]} 39. fxe5 {[%emt 0:08:49]} f4 {[%emt 0:00:57]} 40. Rd1 {[%emt 0:00:00]} fxg3 {[%emt 0:00:00]} 41. Qxd4 {[%emt 0:02:19]} gxh2 {[%emt 0:03:52]} 42. e6+ {[%emt 0:10:19]} Rg7 {[%emt 0:00:17]} 43. Bc6 {[%emt 0:00:42]} Qxe6 {[%emt 0:01:10]} 44. Bd5 {[%emt 0:01:29]} Qg6 {[%emt 0:01:41]} 45. Be4 {[%emt 0:17:50]} Qg1+ {[%emt 0:00:37]} 46. Rxg1 {[%emt 0:00:06]} hxg1=Q+ {[%emt 0:00:03]} 47. Qxg1 {[%emt 0:00:05]} Rxg1+ {[%emt 0:00:13]} 48. Kxg1 {[%emt 0:00:01]} Nf7 {[%emt 0:00:32]} 49. Bc3+ {[%emt 0:01:17]} Kg8 {[%emt 0:00:02]} 50. Bd5 {[%emt 0:00:26]} Kf8 {[%emt 0:00:12]} 51. Bf6 {[%emt 0:00:08]} Nd6 {[%emt 0:01:00]} 52. Kg2 {[%emt 0:00:24]} Ke8 {[%emt 0:00:20]} 53. Be6 {[%emt 0:00:19]} Ne4 {[%emt 0:00:58]} 54. Bh4 {[%emt 0:00:06]} h6 {[%emt 0:00:15]} 55. Bd5 {[%emt 0:00:37]} Ng5 {[%emt 0:00:20]} 56. Kg3 {[%emt 0:00:06]} Ke7 {[%emt 0:00:49]} 57. Kg4 {[%emt 0:00:13]} Kf6 {[%emt 0:00:02]} 58. Ba2 {[%emt 0:00:18]} Kg6 {[%emt 0:06:25]} 59. Bb1+ {[%emt 0:00:21]} Kf6 {[%emt 0:00:02]} 60. Bg3 {[%emt 0:00:20]} Ne6 {[%emt 0:02:16]} 61. Be1 {[%emt 0:00:21]} Ng7 {[%emt 0:01:21]} 62. Bc3+ {[%emt 0:02:07]} Kf7 {[%emt 0:00:04]} 63. Bb2 {[%emt 0:00:47]} Ne6 {[%emt 0:03:26]} 64. Kf5 {[%emt 0:01:03]} Ng7+ {[%emt 0:00:05]} 65. Ke5 {[%emt 0:00:26]} Ne8 {[%emt 0:01:35]} 66. Bd3 {[%emt 0:01:47]} Ng7 {[%emt 0:01:10]} 67. Bc1 {[%emt 0:01:14]} Ne8 {[%emt 0:00:44]} 68. Bc2 {[%emt 0:01:47]} Ng7 {[%emt 0:00:30]} 69. Bd1 {[%emt 0:06:02]} h5 {[%emt 0:00:33]} 70. Bg5 {[%emt 0:01:06]} Kg6 {[%emt 0:01:19]} 71. Bh4 {[%emt 0:00:16]} Kf7 {[%emt 0:00:22]} 72. Bc2 {[%emt 0:00:49]} Ne8 {[%emt 0:00:35]} 73. Ba4 {[%emt 0:03:11]} Ng7 {[%emt 0:00:07]} 74. Kf4 {[%emt 0:01:07]} Ne6+ {[%emt 0:03:11]} 75. Kf5 {[%emt 0:00:13]} Ng7+ {[%emt 0:01:33]} 76. Kg5 {[%emt 0:00:17]} Ne6+ {[%emt 0:01:09]} 77. Kh6 {[%emt 0:00:23]} Nd4 {[%emt 0:01:10]} 78. Bf2 {[%emt 0:00:38]} Ne6 {[%emt 0:01:40]} 79. Bh4 {[%emt 0:01:49]} Nd4 {[%emt 0:00:21]} 80. Bd7 {[%emt 0:00:11]} Ne6 {[%emt 0:00:47]} 81. Bc6 {[%emt 0:01:11]} Nf4 {[%emt 0:01:46]} 82. Bg5 {[%emt 0:01:20]} Nd3 {[%emt 0:01:28]} 83. Bd5+ {[%emt 0:01:38]} Ke8 {[%emt 0:00:06]} 84. Be6 {[%emt 0:00:10]} Nc5 {[%emt 0:00:16]} 85. Bf5 {[%emt 0:00:33]} Kf7 {[%emt 0:00:26]} 86. Bh4 {[%emt 0:00:50]} Ne6 {[%emt 0:00:23]} 87. Bg6+ {[%emt 0:00:17]} Kf8 {[%emt 0:00:19]} 88. Be4 {[%emt 0:02:29]} Nc5 {[%emt 0:01:39]} 89. Bg6 {[%emt 0:01:59]} Ne6 {[%emt 0:00:41]} 90. Bxh5 {[%emt 0:00:33]} Nf4 {[%emt 0:01:36]} 91. Bg4 {[%emt 0:00:16]} Kf7 {[%emt 0:00:07]} 92. Bg5 {[%emt 0:00:43]} Nd5 {[%emt 0:01:22]} 93. Bd7 {[%emt 0:01:07]} Nf6 {[%emt 0:01:13]} 94. Bf5 {[%emt 0:00:34]} Ng8+ {[%emt 0:00:22]} 95. Kh5 {[%emt 0:00:12]} Nf6+ {[%emt 0:00:02]} 96. Kh4 {[%emt 0:00:06]} Ne8 {[%emt 0:00:21]} 97. Bc2 {[%emt 0:01:03]} Nf6 {[%emt 0:00:47]} 98. Bf4 {[%emt 0:00:59]} Ke6 {[%emt 0:01:05]} 99. Kg5 {[%emt 0:00:10]} Nd7 {[%emt 0:00:32]} 100. Bb3+ {[%emt 0:00:32]} Ke7 {[%emt 0:00:03]} 101. Kf5 {[%emt 0:00:15]} Nc5 {[%emt 0:00:31]} 102. Bc4 {[%emt 0:00:20]} Nd7 {[%emt 0:00:19]} 103. Bd2 {[%emt 0:01:11]} Kd6 {[%emt 0:00:33]} 104. Bb4+ {[%emt 0:00:04]} Kc6 {[%emt 0:00:22]} 105. Ke4 {[%emt 0:00:58]} Nb6 {[%emt 0:00:13]} 106. Bf7 {[%emt 0:00:19]} Kb5 {[%emt 0:00:22]} 107. Be7 {[%emt 0:00:13]} Nc8 {[%emt 0:00:53]} 108. Bf8 {[%emt 0:00:31]} Nb6 {[%emt 0:01:01]} 109. Kd4 {[%emt 0:00:21]} Kc6 {[%emt 0:00:40]} 110. Be8+ {[%emt 0:00:09]} Kc7 {[%emt 0:00:08]} 111. Bb5 {[%emt 0:01:13]} Nd7 {[%emt 0:00:17]} 112. Be7 {[%emt 0:01:44]} Nb6 {[%emt 0:00:14]} 113. Kc5 {[%emt 0:03:14]} Nd7+ {[%emt 0:00:05]} 114. Kd5 {[%emt 0:00:07]} Nb6+ {[%emt 0:00:03]} 115. Ke6 {[%emt 0:00:06]} Nc8 {[%emt 0:00:14]} 116. Bc5 {[%emt 0:01:00]} Kb7 {[%emt 0:01:21]} 117. Bf2 {[%emt 0:03:38]} Kc7 {[%emt 0:00:16]} 118. Be1 {[%emt 0:01:48]} Nb6 {[%emt 0:01:11]} 119. Ba5 {[%emt 0:00:12]} Kb7 {[%emt 0:00:01]} 120. Kd6 {[%emt 0:00:12]} Nc8+ {[%emt 0:00:12]} 121. Kc5 {[%emt 0:00:27]} Na7 {[%emt 0:00:47]} 122. Bd7 {[%emt 0:02:16]} Ka6 {[%emt 0:00:50]} 123. Bb6 {[%emt 0:00:14]} Kb7 {[%emt 0:00:08]} 124. Bg4 {[%emt 0:00:15]} Nc8 {[%emt 0:01:54]} 125. Bf3+ {[%emt 0:02:01]} Kb8 {[%emt 0:00:02]} 126. Bd8 {[%emt 0:00:17]} Na7 {[%emt 0:00:43]} 127. Kb6 {[%emt 0:05:08]} Nc8+ {[%emt 0:00:03]} 128. Kc6 {[%emt 0:00:04]} Ka7 {[%emt 0:04:00]} 129. Bg4 {[%emt 0:00:08]} 1-0

[Event "AUT Bundesliga 2022-23"]
[Site "Jenbach"]
[Date "2022.11.03"]
[Round "1.9"]
[White "Devine, Christopher"]
[Black "Peyrer, Konstantin"]
[Result "0-1"]
[ECO "A49"]
[WhiteElo "2098"]
[BlackElo "2402"]
[Annotator "ChessBase"]
[PlyCount "96"]
[EventDate "2022.11.03"]
[EventType "team-tourn"]
[EventCountry "AUT"]
[SourceTitle "playchess.com"]
[Source "ChessBase"]
[SourceQuality "1"]
[TimeControl "40/5400+30:1800+30"]

1. d4 {[%emt 0:00:05]} Nf6 {[%emt 0:00:34]} 2. Nf3 {[%emt 0:00:09]} g6 {[%emt 0:00:06]} 3. g3 {[%emt 0:00:39]} Bg7 {[%emt 0:00:07]} 4. Bg2 {[%emt 0:00:07]} O-O {[%emt 0:00:08]} 5. O-O {[%emt 0:00:10]} d6 {[%emt 0:00:04]} 6. c4 {[%emt 0:00:10]} c5 {[%emt 0:00:13]} 7. e3 {[%emt 0:07:50]} Nc6 {[%emt 0:01:20]} 8. Nc3 {[%emt 0:04:05]} Bf5 {[%emt 0:00:59]} 9. d5 {[%emt 0:09:14]} Na5 {[%emt 0:00:40]} 10. Qe2 {[%emt 0:00:14]} Ne4 {[%emt 0:06:56]} 11. Nxe4 {[%emt 0:07:02]} Bxe4 {[%emt 0:00:07]} 12. Nd2 {[%emt 0:00:14]} Bxg2 {[%emt 0:00:13]} 13. Kxg2 {[%emt 0:00:04]} e6 {[%emt 0:12:10]} 14. Rb1 {[%emt 0:03:28]} Qe7 {[%emt 0:10:46]} 15. b3 {[%emt 0:07:18]} Rae8 {[%emt 0:01:34]} 16. Qd3 {[%emt 0:03:58]} exd5 {[%emt 0:08:44]} 17. cxd5 {[%emt 0:00:11]} f5 {[%emt 0:01:38]} 18. h4 {[%emt 0:09:43]} a6 {[%emt 0:08:11]} 19. b4 {[%emt 0:07:11]} cxb4 {[%emt 0:00:13]} 20. Rxb4 {[%emt 0:00:05]} Rc8 {[%emt 0:00:43]} 21. Bb2 {[%emt 0:14:53]} Bxb2 {[%emt 0:02:43]} 22. Rxb2 {[%emt 0:00:03]} Qe5 {[%emt 0:00:36]} 23. Rb4 {[%emt 0:02:59]} Rc3 {[%emt 0:01:52]} 24. Qd4 {[%emt 0:01:05]} Qxd4 {[%emt 0:00:20]} 25. Rxd4 {[%emt 0:00:34]} Rc2 {[%emt 0:03:34]} 26. a4 {[%emt 0:02:55]} Rfc8 {[%emt 0:01:30]} 27. Rb1 {[%emt 0:00:19]} Ra2 {[%emt 0:02:50]} 28. Nb3 {[%emt 0:12:05]} Nc4 {[%emt 0:00:18]} 29. e4 {[%emt 0:00:48]} Rxa4 {[%emt 0:01:26]} 30. exf5 {[%emt 0:00:19]} gxf5 {[%emt 0:00:18]} 31. Rf4 {[%emt 0:00:47]} Rb4 {[%emt 0:03:43]} 32. Rxf5 {[%emt 0:04:57]} a5 {[%emt 0:01:05]} 33. Re1 {[%emt 0:00:09]} Rxb3 {[%emt 0:00:45]} 34. Re7 {[%emt 0:00:12]} Ne5 {[%emt 0:01:59]} 35. Rg5+ {[%emt 0:01:27]} Kf8 {[%emt 0:00:27]} 36. Rxh7 {[%emt 0:00:37]} Nf7 {[%emt 0:08:14]} 37. Rgg7 {[%emt 0:00:24]} Rc7 {[%emt 0:00:07]} 38. g4 {[%emt 0:01:55]} a4 {[%emt 0:00:10]} 39. g5 {[%emt 0:00:01]} Nxg5 {[%emt 0:00:09]} 40. Rxc7 {[%emt 0:00:00]} Nxh7 {[%emt 0:00:00]} 41. Rxh7 {[%emt 0:00:48]} a3 {[%emt 0:05:44]} 42. Rh8+ {[%emt 0:05:07]} Kg7 {[%emt 0:00:20]} 43. Ra8 {[%emt 0:00:07]} b5 {[%emt 0:01:11]} 44. f3 {[%emt 0:00:19]} b4 {[%emt 0:00:18]} 45. Kg3 {[%emt 0:04:25]} Rd3 {[%emt 0:02:17]} 46. Ra4 {[%emt 0:02:54]} Rd1 {[%emt 0:00:08]} 47. Kf4 {[%emt 0:01:56]} b3 {[%emt 0:00:16]} 48. Kf5 {[%emt 0:01:46]} b2 {[%emt 0:00:59]} 0-1

[Event "AUT Bundesliga 2022-23"]
[Site "Jenbach"]
[Date "2022.11.03"]
[Round "1.10"]
[White "Steindl, Johannes"]
[Black "Kersten, Julian"]
[Result "1-0"]
[ECO "C11"]
[WhiteElo "2315"]
[BlackElo "1999"]
[Annotator "ChessBase"]
[PlyCount "71"]
[EventDate "2022.11.03"]
[EventType "team-tourn"]
[EventCountry "AUT"]
[SourceTitle "playchess.com"]
[Source "ChessBase"]
[SourceQuality "1"]
[TimeControl "40/5400+30:1800+30"]

1. e4 {[%emt 0:00:03]} e6 {[%emt 0:00:17]} 2. d4 {[%emt 0:00:05]} d5 {[%emt 0:00:04]} 3. Nc3 {[%emt 0:00:09]} Nf6 {[%emt 0:00:20]} 4. e5 {[%emt 0:00:22]} Nfd7 {[%emt 0:00:07]} 5. f4 {[%emt 0:00:03]} c5 {[%emt 0:00:20]} 6. Nf3 {[%emt 0:00:04]} Nc6 {[%emt 0:01:24]} 7. Be3 {[%emt 0:00:04]} cxd4 {[%emt 0:01:40]} 8. Nxd4 {[%emt 0:00:04]} Bc5 {[%emt 0:00:08]} 9. Qd2 {[%emt 0:00:21]} O-O {[%emt 0:00:42]} 10. O-O-O {[%emt 0:02:32]} a6 {[%emt 0:00:52]} 11. h4 {[%emt 0:03:35]} Qc7 {[%emt 0:05:37]} 12. h5 {[%emt 0:02:48]} Nxd4 {[%emt 0:01:48]} 13. Bxd4 {[%emt 0:00:03]} b5 {[%emt 0:03:50]} 14. h6 {[%emt 0:07:57]} g6 {[%emt 0:01:52]} 15. Kb1 {[%emt 0:00:34]} Bb7 {[%emt 0:03:47]} 16. Rh3 {[%emt 0:11:01]} Rac8 {[%emt 0:01:31]} 17. Qf2 {[%emt 0:06:53]} Bb6 {[%emt 0:14:05]} 18. a3 {[%emt 0:05:54]} Bxd4 {[%emt 0:09:08]} 19. Qxd4 {[%emt 0:01:11]} Qc5 {[%emt 0:03:01]} 20. Rhd3 {[%emt 0:06:58]} Qxd4 {[%emt 0:04:55]} 21. Rxd4 {[%emt 0:00:05]} f6 {[%emt 0:02:16]} 22. exf6 {[%emt 0:01:25]} Rxf6 {[%emt 0:06:36]} 23. g3 {[%emt 0:01:05]} Nc5 {[%emt 0:13:55]} 24. Bh3 {[%emt 0:05:18]} Re8 {[%emt 0:07:20]} 25. Re1 {[%emt 0:01:27]} Bc6 {[%emt 0:03:23]} 26. Rd2 {[%emt 0:08:12]} g5 {[%emt 0:01:44]} 27. fxg5 {[%emt 0:09:09]} Rf3 {[%emt 0:00:27]} 28. Rde2 {[%emt 0:00:04]} d4 {[%emt 0:04:36]} 29. Bxe6+ {[%emt 0:04:31]} Kh8 {[%emt 0:05:48]} 30. Bd5 {[%emt 0:02:56]} Rxe2 {[%emt 0:02:27]} 31. Rxe2 {[%emt 0:00:12]} Bxd5 {[%emt 0:01:10]} 32. Nxd5 {[%emt 0:00:11]} Rf1+ {[%emt 0:00:40]} 33. Ka2 {[%emt 0:00:05]} Kg8 {[%emt 0:00:14]} 34. Re7 {[%emt 0:01:21]} Rf7 {[%emt 0:00:39]} 35. Nf6+ {[%emt 0:00:05]} Kf8 {[%emt 0:00:16]} 36. Re8# {[%emt 0:00:06]} 1-0

[Event "AUT Bundesliga 2022-23"]
[Site "Jenbach"]
[Date "2022.11.03"]
[Round "1.11"]
[White "Neff, Gregor"]
[Black "Huber, Benedikt"]
[Result "1-0"]
[ECO "A13"]
[WhiteElo "2073"]
[BlackElo "2299"]
[Annotator "ChessBase"]
[PlyCount "100"]
[EventDate "2022.11.03"]
[EventType "team-tourn"]
[EventCountry "AUT"]
[SourceTitle "playchess.com"]
[Source "ChessBase"]
[SourceQuality "1"]
[TimeControl "40/5400+30:1800+30"]

1. c4 {[%emt 0:00:19]} e6 {[%emt 0:00:09]} 2. Nf3 {[%emt 0:01:21]} d5 {[%emt 0:00:07]} 3. g3 {[%emt 0:01:01]} Nf6 {[%emt 0:00:11]} 4. Bg2 {[%emt 0:00:06]} dxc4 {[%emt 0:00:07]} 5. O-O {[%emt 0:00:12]} b5 {[%emt 0:05:28]} 6. a4 {[%emt 0:03:34]} c6 {[%emt 0:05:25]} 7. axb5 {[%emt 0:02:40]} cxb5 {[%emt 0:01:36]} 8. Nd4 {[%emt 0:43:48]} Nd5 {[%emt 0:03:42]} 9. Nxb5 {[%emt 0:02:56]} Nd7 {[%emt 0:14:09]} 10. N1c3 {[%emt 0:11:51]} Bb7 {[%emt 0:01:48]} 11. Nxd5 {[%emt 0:09:05]} Bxd5 {[%emt 0:01:22]} 12. Bxd5 {[%emt 0:00:17]} exd5 {[%emt 0:00:08]} 13. d3 {[%emt 0:01:33]} Bc5 {[%emt 0:10:30]} 14. dxc4 {[%emt 0:00:26]} dxc4 {[%emt 0:00:08]} 15. Nd6+ {[%emt 0:01:14]} Bxd6 {[%emt 0:00:41]} 16. Qxd6 {[%emt 0:00:02]} Qe7 {[%emt 0:01:44]} 17. Qc7 {[%emt 0:04:01]} Ne5 {[%emt 0:12:10]} 18. Rxa7 {[%emt 0:06:29]} Rxa7 {[%emt 0:00:15]} 19. Qb8+ {[%emt 0:00:05]} Qd8 {[%emt 0:00:05]} 20. Qxa7 {[%emt 0:02:53]} O-O {[%emt 0:00:17]} 21. Qc5 {[%emt 0:00:48]} Re8 {[%emt 0:02:43]} 22. Bf4 {[%emt 0:02:42]} Ng6 {[%emt 0:00:18]} 23. Qxc4 {[%emt 0:00:59]} Nxf4 {[%emt 0:00:16]} 24. Qxf4 {[%emt 0:01:41]} Rxe2 {[%emt 0:00:06]} 25. b4 {[%emt 0:00:48]} Rb2 {[%emt 0:02:10]} 26. Rc1 {[%emt 0:01:03]} g6 {[%emt 0:01:13]} 27. h4 {[%emt 0:00:52]} h5 {[%emt 0:01:28]} 28. Rc7 {[%emt 0:00:58]} Rb1+ {[%emt 0:00:24]} 29. Kh2 {[%emt 0:00:07]} Qd5 {[%emt 0:00:44]} 30. Rc1 {[%emt 0:00:23]} Rxc1 {[%emt 0:17:06]} 31. Qxc1 {[%emt 0:00:12]} Kf8 {[%emt 0:00:07]} 32. Qc8+ {[%emt 0:01:21]} Ke7 {[%emt 0:00:07]} 33. Qc7+ {[%emt 0:00:05]} Ke6 {[%emt 0:00:23]} 34. Qc8+ {[%emt 0:00:20]} Ke7 {[%emt 0:00:26]} 35. Qc3 {[%emt 0:00:20]} Ke6 {[%emt 0:00:49]} 36. Kg1 {[%emt 0:00:18]} Qd1+ {[%emt 0:02:41]} 37. Kg2 {[%emt 0:00:08]} Qd5+ {[%emt 0:00:20]} 38. Kg1 {[%emt 0:00:05]} Qd1+ {[%emt 0:00:11]} 39. Kh2 {[%emt 0:00:46]} Qd5 {[%emt 0:00:21]} 40. Qe3+ {[%emt 0:00:00]} Kd6 {[%emt 0:00:00]} 41. Qb6+ {[%emt 0:00:37]} Ke7 {[%emt 0:02:31]} 42. b5 {[%emt 0:00:15]} Qf3 {[%emt 0:02:01]} 43. Qd4 {[%emt 0:01:55]} f6 {[%emt 0:01:24]} 44. Kg1 {[%emt 0:00:33]} Ke6 {[%emt 0:00:26]} 45. b6 {[%emt 0:02:29]} g5 {[%emt 0:00:08]} 46. Qc4+ {[%emt 0:03:12]} Kd6 {[%emt 0:01:34]} 47. Qc7+ {[%emt 0:00:43]} Ke6 {[%emt 0:00:06]} 48. hxg5 {[%emt 0:03:00]} fxg5 {[%emt 0:00:03]} 49. b7 {[%emt 0:05:15]} Qd1+ {[%emt 0:00:22]} 50. Kh2 {[%emt 0:00:22]} Qd4 {[%emt 0:00:29]} 1-0

[Event "AUT Bundesliga 2022-23"]
[Site "Jenbach"]
[Date "2022.11.03"]
[Round "1.12"]
[White "Bauer, Thomas"]
[Black "Goetz, Christoph"]
[Result "1/2-1/2"]
[ECO "B01"]
[WhiteElo "2105"]
[BlackElo "1867"]
[Annotator "ChessBase"]
[PlyCount "76"]
[EventDate "2022.11.03"]
[EventType "team-tourn"]
[EventCountry "AUT"]
[SourceTitle "playchess.com"]
[Source "ChessBase"]
[SourceQuality "1"]
[TimeControl "40/5400+30:1800+30"]

1. e4 {[%emt 0:00:03]} d5 {[%emt 0:00:06]} 2. exd5 {[%emt 0:00:13]} Nf6 {[%emt 0:00:09]} 3. d4 {[%emt 0:00:18]} Bg4 {[%emt 0:00:36]} 4. Nf3 {[%emt 0:03:06]} Qxd5 {[%emt 0:01:27]} 5. Be2 {[%emt 0:00:03]} e6 {[%emt 0:00:37]} 6. O-O {[%emt 0:03:53]} Be7 {[%emt 0:03:55]} 7. c4 {[%emt 0:00:02]} Qd8 {[%emt 0:00:27]} 8. Qb3 {[%emt 0:07:13]} b6 {[%emt 0:05:22]} 9. h3 {[%emt 0:05:23]} Bh5 {[%emt 0:00:16]} 10. Nc3 {[%emt 0:00:02]} O-O {[%emt 0:08:04]} 11. Bf4 {[%emt 0:03:17]} c6 {[%emt 0:03:38]} 12. Rfd1 {[%emt 0:00:16]} Bd6 {[%emt 0:03:52]} 13. Be3 {[%emt 0:08:52]} Qe7 {[%emt 0:07:01]} 14. Rd2 {[%emt 0:06:29]} Rd8 {[%emt 0:13:32]} 15. Qa4 {[%emt 0:08:13]} Qb7 {[%emt 0:08:27]} 16. g4 {[%emt 0:09:36]} Bg6 {[%emt 0:02:48]} 17. Nh4 {[%emt 0:00:02]} Ne4 {[%emt 0:04:19]} 18. Nxe4 {[%emt 0:11:27]} Bxe4 {[%emt 0:00:09]} 19. f3 {[%emt 0:00:18]} Be7 {[%emt 0:08:45]} 20. fxe4 {[%emt 0:02:34]} Bxh4 {[%emt 0:00:13]} 21. Rf1 {[%emt 0:00:20]} Nd7 {[%emt 0:09:50]} 22. e5 {[%emt 0:02:15]} Qc7 {[%emt 0:01:54]} 23. Bf4 {[%emt 0:03:09]} Rac8 {[%emt 0:02:04]} 24. Qa3 {[%emt 0:01:53]} Nf8 {[%emt 0:02:20]} 25. Qe3 {[%emt 0:03:15]} Ng6 {[%emt 0:02:53]} 26. Bh2 {[%emt 0:01:03]} Be7 {[%emt 0:01:44]} 27. Kh1 {[%emt 0:02:43]} Rd7 {[%emt 0:02:12]} 28. d5 {[%emt 0:06:42]} cxd5 {[%emt 0:00:36]} 29. cxd5 {[%emt 0:00:19]} Qd8 {[%emt 0:00:35]} 30. d6 {[%emt 0:09:11]} Bg5 {[%emt 0:00:21]} 31. Qd3 {[%emt 0:00:02]} Bxd2 {[%emt 0:00:32]} 32. Qxd2 {[%emt 0:00:02]} Rc5 {[%emt 0:00:31]} 33. Qe3 {[%emt 0:00:51]} Qc8 {[%emt 0:02:29]} 34. Bd3 {[%emt 0:00:44]} Qc6+ {[%emt 0:00:48]} 35. Kg1 {[%emt 0:00:50]} Qd5 {[%emt 0:01:34]} 36. Be4 {[%emt 0:02:13]} Qxa2 {[%emt 0:01:34]} 37. b4 {[%emt 0:00:10]} Rc8 {[%emt 0:01:33]} 38. b5 {[%emt 0:00:26]} Qc4 1/2-1/2

[Event "AUT Bundesliga 2022-23"]
[Site "Jenbach"]
[Date "2022.11.03"]
[Round "1.13"]
[White "Haba, Petr"]
[Black "Rozentalis, Eduardas"]
[Result "1/2-1/2"]
[ECO "E05"]
[WhiteElo "2454"]
[BlackElo "2500"]
[Annotator "ChessBase"]
[PlyCount "91"]
[EventDate "2022.11.03"]
[EventType "team-tourn"]
[EventCountry "AUT"]
[SourceTitle "playchess.com"]
[Source "ChessBase"]
[SourceQuality "1"]
[TimeControl "40/5400+30:1800+30"]

1. d4 {[%emt 0:00:18]} Nf6 {[%emt 0:00:10]} 2. c4 {[%emt 0:00:07]} e6 {[%emt 0:00:04]} 3. g3 {[%emt 0:00:24]} d5 {[%emt 0:00:50]} 4. Bg2 {[%emt 0:00:14]} dxc4 {[%emt 0:00:23]} 5. Nf3 {[%emt 0:00:24]} Be7 {[%emt 0:00:25]} 6. O-O {[%emt 0:00:55]} O-O {[%emt 0:00:36]} 7. Ne5 {[%emt 0:01:16]} Nc6 {[%emt 0:00:59]} 8. Bxc6 {[%emt 0:01:10]} bxc6 {[%emt 0:00:04]} 9. Nxc6 {[%emt 0:00:06]} Qe8 {[%emt 0:01:46]} 10. Nxe7+ {[%emt 0:00:11]} Qxe7 {[%emt 0:00:04]} 11. Qa4 {[%emt 0:00:25]} c5 {[%emt 0:02:01]} 12. Qa3 {[%emt 0:01:05]} Bb7 {[%emt 0:03:39]} 13. Bg5 {[%emt 0:01:38]} Rfc8 {[%emt 0:05:40]} 14. Nc3 {[%emt 0:01:28]} h6 {[%emt 0:12:19]} 15. Bxf6 {[%emt 0:00:40]} Qxf6 {[%emt 0:02:47]} 16. dxc5 {[%emt 0:00:37]} Qe5 {[%emt 0:06:02]} 17. Rad1 {[%emt 0:00:38]} Rxc5 {[%emt 0:04:41]} 18. Rd7 {[%emt 0:00:43]} Bc6 {[%emt 0:08:10]} 19. Rxa7 {[%emt 0:00:19]} Rd8 {[%emt 0:00:24]} 20. Rc7 {[%emt 0:24:13]} Qxc7 {[%emt 0:13:44]} 21. Qxc5 {[%emt 0:00:40]} Qb7 {[%emt 0:00:03]} 22. Qxc4 {[%emt 0:20:34]} Rc8 {[%emt 0:00:42]} 23. Qb3 {[%emt 0:02:16]} Qxb3 {[%emt 0:01:30]} 24. axb3 {[%emt 0:00:01]} Rb8 {[%emt 0:00:21]} 25. Rd1 {[%emt 0:11:53]} Rxb3 {[%emt 0:01:51]} 26. Rd2 {[%emt 0:01:23]} g5 {[%emt 0:04:20]} 27. f3 Kf8 28. Kf2 {[%emt 0:05:04]} Ke7 {[%emt 0:09:39]} 29. Ke3 {[%emt 0:00:17]} Rb4 {[%emt 0:04:06]} 30. Kd3 {[%emt 0:08:38]} f5 {[%emt 0:01:45]} 31. Kc2 {[%emt 0:02:26]} h5 32. b3 f4 {[%emt 0:04:01]} 33. Na2 {[%emt 0:02:00]} Rb8 {[%emt 0:00:49]} 34. gxf4 {[%emt 0:01:09]} gxf4 {[%emt 0:00:06]} 35. Rd4 {[%emt 0:02:29]} Rg8 {[%emt 0:04:57]} 36. Rxf4 {[%emt 0:03:58]} Rg2 {[%emt 0:00:08]} 37. Nc3 {[%emt 0:00:52]} Rxh2 {[%emt 0:01:57]} 38. Kd3 {[%emt 0:00:53]} h4 {[%emt 0:03:13]} 39. b4 {[%emt 0:02:40]} e5 {[%emt 0:04:35]} 40. Rg4 {[%emt 0:00:00]} h3 {[%emt 0:00:00]} 41. Rh4 {[%emt 0:14:01]} Rh1 {[%emt 0:09:46]} 42. b5 {[%emt 0:02:51]} Ba8 {[%emt 0:01:12]} 43. b6 {[%emt 0:12:38]} h2 {[%emt 0:01:42]} 44. Kc2 {[%emt 0:00:15]} Kd6 {[%emt 0:02:40]} 45. Rh6+ {[%emt 0:03:49]} Kc5 {[%emt 0:02:58]} 46. Kd2 {[%emt 0:02:39]} 1/2-1/2